Cogmind - Beta 11 @@@ ROGUE MODE // 2022.04.01 @ 11:11:13 Player: Awoo-Bot Result: Destroyed by as-91264 with Assembled Rifle Performance ------------- Evolutions (0) 0 Regions Visited (2) 400 Robots Destroyed (21) 105 Value Destroyed (438) 438 Prototype IDs (0) 0 Alien Tech Used (0) 0 Bonus (0) 0 TOTAL SCORE: 943 Bonus ------- None Cogmind --------- Core Integrity 0/250 Matter 200/300 Energy 100/100 System Corruption 7% Temperature Cool (0) Movement Core (700) Ox13 Location -10/Mines Parts ------- > --- POWER (1) -------- (None) > --- PROPULSION (2) --- (None) > --- UTILITY (2) ------ High-capacity Storage Unit > --- WEAPON (2) ------- (None) > --- INVENTORY (20) --- Ion Engine High-capacity Storage Unit Hardened Light Armor Plating Hardened Light Armor Plating Medium Laser Medium Laser Medium Laser Light Cannon Datajack Hammer Peak State ------------ > --- POWER ------------ Ion Engine > --- PROPULSION ------- Light Treads Light Treads > --- UTILITY ---------- High-capacity Storage Unit Improved Targeting Computer > --- WEAPON ----------- Assault Rifle Mini Grenade Launcher > --- INVENTORY -------- Ion Engine Wheel Wheel Medium Laser Medium Laser Medium Laser Medium Laser Medium Laser Light Assault Rifle Hammer [Rating: 10] Favorites ----------- Power Light Ion Engine Engine Light Ion Engine Propulsion Light Treads Treads Light Treads Wheel Wheel Utility Improved Targeting Computer Device Seismic Detector Storage High-capacity Storage Unit Processor Improved Targeting Computer Weapon Medium Laser Energy Gun Medium Laser Ballistic Gun Assault Rifle Launcher Mini Grenade Launcher Impact Weapon Hammer Build | -11 -10 -10 ------- Run | Scr Mat Min Slots Evolved . | . . . Power . | . . . Propulsion . | . . . Utility . | . . . Weapon . | . . . Parts Attached 28 | 7 17 4 Power 2 | 1 1 . Engine 2 | 1 1 . Core . | . . . Reactor . | . . . Propulsion 4 | 2 . 2 Treads 2 | 2 . . Leg . | . . . Wheel 2 | . . 2 Hover . | . . . Flight . | . . . Utility 6 | 2 4 . Device 1 | 1 . . Storage 4 | 1 3 . Processor 1 | . 1 . Hackware . | . . . Protection . | . . . Artifact . | . . . Weapon 16 | 2 12 2 Energy Gun 3 | . 2 1 Energy Cannon . | . . . Ballistic Gun 5 | 2 3 . Ballistic Cannon . | . . . Launcher 4 | . 3 1 Special Weapon . | . . . Impact Weapon 4 | . 4 . Slashing Weapon . | . . . Piercing Weapon . | . . . Special Melee Weapon . | . . . Unidentified Prototypes . | . . . Parts Lost 6 | . . 6 Power 1 | . . 1 Propulsion 2 | . . 2 Utility 1 | . . 1 Weapon 2 | . . 2 Highest Loss Streak 6 | . . 6 To Critical Strikes . | . . . Average Slot Usage (%) 99 | . 100 87 Engine 13 | . 14 12 Treads 27 | . 28 21 Storage 14 | . 14 14 Processor 13 | . 13 11 Energy Gun 11 | . 10 23 Ballistic Gun 9 | . 10 . Impact Weapon 6 | . 7 . Naked Turns . | . . . Heaviest Build 49 | 14 49 47 Greatest Support 40 | 40 40 40 Greatest Overweight (x) 13 | . 1 13 Average Overweight (x) . | . . 1 Largest Inventory Capacity 20 | 8 20 20 Average Capacity 18 | 7 18 20 Most Carried 14 | 4 14 12 Average Carried 10 | 3 10 11 Final Capacity 20 | 8 20 20 Final Carried 12 | 4 12 10 Class Distribution -------------------- 100% | Mutant Dominant Class ---------------- Mutant | -10/Materials Mutant | -10/Mines Resources | -11 -10 -10 ----------- Run | Scr Mat Min Matter Collected 583 | 272 311 . Remotely . | . . . Salvage Created 605 | 64 507 34 Parts 49 | 6 43 . Haulers Intercepted . | . . . Recyclers Shooed . | . . . Parts Field Recycled . | . . . Retrieved Matter . | . . . Parts Self-Destructed . | . . . Prevented . | . . . Kills | -11 -10 -10 ------- Run | Scr Mat Min Combat Hostiles Destroyed 27 | . 14 13 Guns 11 | . 11 . AOE 16 | . 3 13 Classes Destroyed 7 | 2 4 1 Tunneler 1 | 1 . . Recycler 2 | 1 1 . Operator 1 | . 1 . Watcher 3 | . 3 . Swarmer 6 | . 6 . Grunt 8 | . 8 . Assembled 13 | . . 13 Best Kill Streak 13 | 1 3 13 Combat Bots Only 13 | . 3 13 Max Kills in Single Turn 4 | 1 3 4 Gunslinging . | . . . Exploded 4 | . 3 4 Melee . | . . . Uniques/NPCs Destroyed . | . . . Combat | -11 -10 -10 -------- Run | Scr Mat Min Damage Taken 921 | . 484 437 Core 252 | . 85 167 Absorbed by Shields . | . . . Core Remaining (%) 100 | 100 . . Volleys Fired 57 | 3 47 7 Largest 2 | 2 2 1 Hottest 70 | 40 70 30 Shots Fired 94 | 6 81 7 Gun 85 | 6 79 . Cannon . | . . . Launcher 9 | . 2 7 Special . | . . . Kinetic 69 | 6 63 . Thermal 16 | . 16 . Explosive 9 | . 2 7 Electromagnetic . | . . . Robot Hit Streak 12 | 5 12 5 Robot Miss Streak 2 | . 2 . Penetration Max . | . . . Secondary Targets . | . . . Shots Hit Robots 62 | 5 54 3 Core Hits 48 | 3 27 18 Critical Kills 1 | . 1 . Critical Parts Destroyed . | . . . Critical Strikes 2 | . 2 . Burn 1 | . 1 . Destroy 1 | . 1 . Melee Attacks 8 | . 8 . Impact 8 | . 8 . Slashing . | . . . Piercing . | . . . Sneak Attacks . | . . . Combat Hostiles . | . . . Follow-up Attacks . | . . . Damage Inflicted 1769 | 53 807 909 Guns 656 | 53 603 . Cannons . | . . . Explosions 1113 | . 204 909 Melee . | . . . Ramming . | . . . Kinetic 543 | 53 490 . Thermal 113 | . 113 . Explosive 1113 | . 204 909 Electromagnetic . | . . . Impact . | . . . Slashing . | . . . Piercing . | . . . Highest Corruption 7 | . . 7 Average Corruption 6 | . . 6 Corruption Purged . | . . . Corruption Blocked . | . . . Overload Shots . | . . . Overflow Damage 45 | . . 45 Projectiles . | . . . Explosions 45 | . . 45 Melee . | . . . Knockbacks . | . . . Impact . | . . . Kinetic . | . . . Secondary . | . . . Self-Inflicted Damage 71 | . . 71 Shots 3 | . . 3 Rammed . | . . . Targets Rammed . | . . . Kicked . | . . . Crushed . | . . . Highest Temperature 30 | . 30 . Average Temperature 11 | . 11 . Received Heat Transfer 203 | . 183 20 Siege Activations . | . . . Robots Corrupted . | . . . Combat Hostiles . | . . . Parts Fried . | . . . Impact Corruptions . | . . . Robots Melted . | . . . Combat Hostiles . | . . . Parts Melted . | . . . Heat Transferred 407 | . 407 . Parts Sabotaged . | . . . Parts Stolen . | . . . Parts Stripped . | . . . Power Chain Reactions . | . . . Missiles Intercepted . | . . . Alert | -11 -10 -10 ------- Run | Scr Mat Min Peak Influence 209 | 10 209 102 Initial 42 | . 6 42 Average 50 | 3 52 47 Maximum Alert Level 1 | . 1 . Low Security (%) 99 | 100 99 100 Level 1 . | . . . Level 2 . | . . . Level 3 . | . . . Level 4 . | . . . Level 5 . | . . . High Security . | . . . Max Security . | . . . Squads Dispatched 2 | . 2 . Investigation 2 | . 2 . Extermination . | . . . Reinforcement . | . . . Assault . | . . . Garrison . | . . . Intercept . | . . . Searches Triggered . | . . . Construction Impeded . | . . . Haulers Reinforced . | . . . Active Scanning Responses . | . . . Cargo Convoy Interrupts . | . . . Stealth | -11 -10 -10 --------- Run | Scr Mat Min Distress Signals 1 | . 1 . Communications Jammed . | . . . Distress Signals . | . . . Times Spotted 48 | . 33 15 Peak Tracking Total 13 | . 3 13 Tactical Retreats 2 | . 2 . Traps | -11 -10 -10 ------- Run | Scr Mat Min Traps Triggered 2 | . 2 . Indirectly . | . . . Trap Hack Attempts . | . . . Triggered . | . . . Disarmed . | . . . Reprogrammed . | . . . Reused . | . . . Traps Extracted . | . . . Installed . | . . . Triggered . | . . . Machines | -11 -10 -10 ---------- Run | Scr Mat Min Machines Disabled 1 | . 1 . Max in Single Turn 1 | . 1 . Machines Sabotaged . | . . . Garrisons Compromised . | . . . Overloaded Fab Kills . | . . . Hacking | -11 -10 -10 --------- Run | Scr Mat Min Machines Accessed 6 | . 6 . Terminals 6 | . 6 . Fabricators . | . . . Repair Stations . | . . . Recycling Units . | . . . Scanalyzers . | . . . Garrison Access . | . . . Total Hacks 18 | . 18 . Successful 12 | . 12 . Failed 6 | . 6 . Catastrophic 1 | . 1 . Database Lockouts . | . . . Manual 18 | . 18 . Terminals 18 | . 18 . Fabricators . | . . . Repair Stations . | . . . Recycling Units . | . . . Scanalyzers . | . . . Garrison Access . | . . . Terminal Hacks 4 | . 4 . Robot Analysis 1 | . 1 . Terminal Index 1 | . 1 . Alert Level 1 | . 1 . Unreport Threat 1 | . 1 . Fabricator Hacks . | . . . Repair Station Hacks . | . . . Recycling Unit Hacks . | . . . Scanalyzer . | . . . Garrison Access Hacks . | . . . Unauthorized Hacks 8 | . 8 . Terminals 8 | . 8 . Assimilate 1 | . 1 . Botnet 6 | . 6 . Operators 1 | . 1 . Fabricators . | . . . Repair Stations . | . . . Recycling Units . | . . . Scanalyzers . | . . . Garrison Access . | . . . Data Cores Recovered . | . . . Used . | . . . Hacking Detections 5 | . 5 . Full Trace Events 1 | . 1 . Feedback Events . | . . . Feedback Blocked . | . . . Robot Schematics Acquired . | . . . Robots Built . | . . . Authchips . | . . . Time . | . . . Total Robot Build Rating . | . . . Part Schematics Acquired . | . . . Parts Built . | . . . Authchips . | . . . Time . | . . . Total Part Build Rating . | . . . Parts Repaired . | . . . Time . | . . . Parts Recycled . | . . . Recycled Matter . | . . . Retrieved Matter . | . . . Retrieved Components . | . . . Parts Scanalyzed . | . . . Part Schematics Acquired . | . . . Parts Damaged . | . . . Bothacking | -11 -10 -10 ------------ Run | Scr Mat Min Used RIF Installer . | . . . Robots Hacked . | . . . Non-combat . | . . . Combat . | . . . Robot Hacks Applied . | . . . Relay Couplers Released . | . . . Fabnet Peak Effective % . | . . . Robots Rewired . | . . . Allies Hacked . | . . . Hacks Repelled . | . . . Allies | -11 -10 -10 -------- Run | Scr Mat Min Total Allies 1 | . 1 . Largest Group 1 | . 1 1 Highest-Rated Group 10 | . 10 9 Highest-Rated Ally 10 | . 10 9 Total Orders 2 | . 2 . STAY 1 | . 1 . FOLLOW 1 | . 1 . Ally Attacks . | . . . Total Damage . | . . . Kills . | . . . Allies Corrupted . | . . . Allies Melted . | . . . Intel | -11 -10 -10 ------- Run | Scr Mat Min Robot Analysis Total 1 | . 1 . Derelict Logs Recovered . | . . . Drone Launches . | . . . Drone Recoveries . | . . . Exploration | -11 -10 -10 ------------- Run | Scr Mat Min Turns Passed 2831 | 84 2587 160 Spaces Moved 1092 | 41 995 56 Core 5 | 3 . 2 Treads 1083 | 38 995 50 Legs . | . . . Wheels 4 | . . 4 Hover . | . . . Flight . | . . . Fastest Speed 50 | 50 160 110 Average Speed 222 | 151 223 247 Slowest Speed 700 | 160 240 700 Overloaded Moves . | . . . Propulsion Burnouts . | . . . Robots Hopped . | . . . Cave-ins Triggered 1 | . . 1 Exploration Rate (%) 41 | 5 98 21 Regions Visited 2 Branch Regions 1 Pre-discovered Areas . | . . . Known Exits Taken . | . . . Unknown Exits Taken 2 | 1 1 . Scrap Searched . | . . . Spaces Dug 5 | . 5 . Terrain Destroyed 74 | . 18 56 Melee 5 | . 5 . Projectile . | . . . AOE 69 | . 13 56 Terrain Rammed . | . . . Walls Destroyed . | . . . Machines Disabled . | . . . Actions | -11 -10 -10 --------- Run | Scr Mat Min Total 1393 | 54 1265 74 Wait 183 | . 178 5 Move 1090 | 40 994 56 Hop . | . . . Pick Up 16 | 4 12 . Fast Attach 8 | 7 1 . Attach 3 | . 1 2 Detach . | . . . Swap 17 | . 15 2 Drop 11 | . 9 2 Fire 57 | 3 47 7 Melee 8 | . 8 . Ram . | . . . Kick . | . . . Crush . | . . . Escape Stasis . | . . . Rewire . | . . . Trap . | . . . Miscellaneous . | . . . Route ------- -11/Scrapyard -10/Materials (discovered 4 exits: [*Mat x3] / [*Min]) -10/Mines History --------- Turn | Location | Event 17 | -11/Scrapyard | Discovered new exit (range 16) 85 | -11/Scrapyard | Entered Materials 306 | -10/Materials | Build established: Mutant 948 | -10/Materials | Discovered new exit (range 10) 1183 | -10/Materials | Discovered new exit (range 3) 1959 | -10/Materials | Discovered new exit (range 15) 2251 | -10/Materials | Discovered new exit (range 9) 2672 | -10/Materials | Entered Mines 2672 | -10/Mines | Accompanied by 1 ally 2688 | -10/Mines | Met a Derelict bent on vengeance 2778 | -10/Mines | Assembled infested the area 2783 | -10/Mines | Assisted by a Guerilla fighting off Assembled 2811 | -10/Mines | Core integrity fell below 50% 2817 | -10/Mines | Crushed by falling debris 2817 | -10/Mines | Core integrity fell below 20% 2832 | -10/Mines | Destroyed by as-91264 with Assembled Rifle Last Messages --------------- 02810_ as-79948 destroyed. 02810_ as-41601 destroyed. 02812_ Lgt. Ion Engine destroyed. 02812_ Wheel destroyed. 02812_ System corrupted by crushing effect (+4). 02812_ System corrupted by crushing effect (+1). 02812_ Knocked back. 02812_ as-72764 destroyed. 02814_ as-41232 destroyed. 02814_ as-21555 destroyed. 02814_ Destroyed Asb. Hover Unit. 02814_ as-91381 destroyed. 02816_ Destroyed Asb. Hover Unit. 02816_ Med. Laser destroyed. 02817_ The unstable cave ceiling collapses. 02817_ Crushed by falling debris. 02818_ as-29486 destroyed. 02818_ as-38697 destroyed. 02828_ Mni. Grenade Launcher destroyed. 02829_ The unstable cave ceiling collapses. Map ----- +----------------------------------------------------+ | ??????????????????????????????????????? | | ??????????????????????????????????????? | | ??????????????###?????????????????????? | | ??????????????# ?????????????????????? | | ??????????????# ?????????????????????? | | ??????????????#% #????????????????????? | | ??????????????# #????????????????????? | | ??????????????# #????????????????????? | | ??????????????# #????????????????????? | | ?????????????## #????????????????????? | | ?????????????# ###??????????????????? | | ?????????????# #??????????????????? | | ???????????### ??????????????????? | | ??????????? #??????????????????? | | ??????????## #??????????????????? | | ??????????? ??????????????????? | | ??????????? ##?????????????????? | | ??????????## #?????????????????? | | ??????????# ##????????????????? | | ??????????# = % ##???????????????? | | ?????????### = #???????????????? | | ?????????# #????????????????? | | ?????????## # #?????????????????? | | ?????????## #?????????????????? | | ????????## #????##########???? | | ????????# @ ##????# #???? | | ????????# # ######### #???? | | ????????# # ## #???? | | ????????# ###### ###### #???? | | ????????# #????# #????# #???? | | ????????# ##???# #????# #???? | | ????????## ##??# #????# #???? | | ?????????# #??# #????# #???? | | ?????????# #??# #????##########???? | | ?????????## #### #?????????????????? | | ??????????### #?????????????????? | | ????????????# ######?????????????????? | | ????????????# #??????????????????????? | | ??????????? ??????????????????????? | | ?????????? ?????????????????????? | | ????????? ????????????????????? | | ???????? ???????????????????? | | ??????? ??????????????????? | | ??????# ??????????????????? | | ??????" ?????????????????? | | ??????" ????????????????? | | ??????#X ????????????????? | | ??????? ???????????????? | | ??????? ?????????????????? | | ?????????? ????????????????????? | +----------------------------------------------------+ Best States ------------- Heat Dissipation 25 Energy Generation 10 Energy Capacity 250 Matter Stores 300 Matter Capacity 300 Sight Range 16 Terrain Scan Density 10 Evasion (%) 40 Targeting Accuracy 6 Recoil Reduction 2 Item Schematics ----------------- None Robot Schematics ------------------ None Fabricated ------------ Nothing Alien Tech Used ----------------- None Achievements -------------- None Challenges ------------ None Game ------ Seed GrapheneColdGenerator Manual? 0 Play Time 00:14:43 Cumulative 52.1 hours Start 2022.04.01 @ 10:57:53 End 2022.04.01 @ 11:11:13 Sessions 1 Manual Loads 0 Difficulty Rogue Special Mode None Game No. 87 Rogue 59 Adventurer 28 Explorer 0 Win Type - Total 0 Types 0/0/0/0/0/0/0/0/0 Lore% 23 Gallery% 28 Achievement% 30 Wizard Run 0 Options --------- ASCII 0 Keyboard 0 Movement Mouse Keybinds 0 Fullscreen 1 Font 24/Terminus Map View 84x54 Tactical HUD 1 Map Filters NONE Filters NONE Steam 1 RUN: 62e0a0aa-d26e-41e1-b48f-26e313305f5d